bitfinex/quotes_BTCUSD_20220226
["timestamp","ask_amount","ask_price","bid_price","bid_amount"]
[1645844318615,0.1217,39601.0,39595.0,6.69e-05]
[1645844319014,0.1220358,39601.0,39595.0,6.69e-05]
[1645844319211,0.48804104,39601.0,39595.0,6.69e-05]
[1645844319411,0.58804104,39601.0,39595.0,6.69e-05]
[1645844319612,0.18158847,39597.0,39595.0,6.69e-05]
[1645844319812,0.1816927,39600.0,39599.0,0.20348434]
[1645844320414,0.54603536,39600.0,39599.0,0.20348434]
[1645844320615,0.1816927,39600.0,39599.0,0.20348434]
[1645844321617,0.44690836,39600.0,39599.0,0.20348434]
[1645844321869,0.44790836,39600.0,39599.0,0.20348434]
[1645844322066,0.1826927,39600.0,39599.0,0.20348434]
[1645844322868,0.35350327,39600.0,39599.0,0.20348434]
[1645844323067,0.54703536,39600.0,39599.0,0.20348434]
[1645844323268,0.54603536,39600.0,39599.0,0.20348434]
[1645844323470,0.71684593,39600.0,39599.0,0.20348434]
[1645844323771,0.76744593,39600.0,39599.0,0.20348434]
[1645844323968,0.76844593,39600.0,39599.0,0.20348434]
[1645844325267,0.77270433,39600.0,39599.0,0.20348434]
[1645844325812,1.92941238,39600.0,39599.0,0.20348434]
[1645844326015,1.93041238,39600.0,39599.0,0.20348434]
[1645844327314,1.92941238,39600.0,39599.0,0.20348434]
[1645844327513,2.69911238,39600.0,39599.0,0.20348434]
[1645844327717,1.61111506,39600.0,39599.0,0.17706869]
[1645844327915,0.77370433,39600.0,39599.0,0.17706869]
[1645844328515,0.60289376,39600.0,39599.0,0.17706869]
[1645844328921,0.40936167,39600.0,39599.0,0.17706869]
[1645844329118,0.50368122,39600.0,39599.0,0.17706869]
[1645844329374,0.50368122,39600.0,39599.0,0.17661639]
[1645844329375,0.50268122,39600.0,39599.0,0.17661639]
[1645844329575,0.45208122,39600.0,39599.0,0.17661639]
[1645844329776,0.1869511,39600.0,39599.0,0.17661639]
[1645844329975,0.1879511,39600.0,39599.0,0.17661639]
[1645844330176,0.45307467,39600.0,39599.0,0.17661639]
[1645844330877,0.21838943,39600.0,39599.0,0.17661639]
[1645844331077,0.21213103,39600.0,39599.0,0.17661639]
[1645844331879,0.21213103,39601.0,39599.0,0.17661639]
[1645844332080,0.21223136,39601.0,39599.0,0.17661639]
[1645844333118,0.21213103,39601.0,39599.0,0.17661639]
[1645844333318,0.1,39602.0,39599.0,0.17661639]
[1645844333319,0.31223136,39602.0,39599.0,0.17661639]
[1645844333921,0.31423136,39602.0,39599.0,0.17661639]
[1645844334321,0.26413103,39602.0,39599.0,0.17661639]
[1645844334523,0.26446446,39602.0,39599.0,0.17661639]
[1645844334720,0.05233343,39602.0,39599.0,0.17661639]
[1645844335021,0.00233343,39602.0,39599.0,0.17661639]
[1645844335223,0.00033343,39602.0,39599.0,0.17661639]
[1645844335422,0.26213103,39603.0,39599.0,0.17661639]
[1645844335622,0.00037412,39602.0,39599.0,0.17661639]
[1645844336122,0.20379918,39601.0,39599.0,0.17661639]
[1645844337970,0.002,39601.0,39599.0,0.17661639]
[1645844339172,0.26213103,39603.0,39599.0,0.17661639]
[1645844339377,0.00032755,39602.0,39599.0,0.17661639]
[1645844339773,0.05032755,39602.0,39599.0,0.17661639]
[1645844339973,0.00132755,39602.0,39599.0,0.17661639]
[1645844340375,0.001,39602.0,39599.0,0.17661639]
[1645844340611,0.00109857,39602.0,39599.0,0.17661639]
[1645844341211,9.857e-05,39602.0,39599.0,0.17661639]
[1645844341511,0.21213103,39603.0,39599.0,0.17661639]
[1645844341712,9.857e-05,39602.0,39599.0,0.17661639]
[1645844342112,0.2122296,39602.0,39599.0,0.17661639]
[1645844342512,0.2622296,39602.0,39599.0,0.17661639]
[1645844342813,0.05,39602.0,39599.0,0.17661639]
[1645844343012,0.00037452,39602.0,39599.0,0.17661639]
[1645844343813,0.05,39603.0,39599.0,0.17661639]
[1645844344013,0.00237452,39602.0,39599.0,0.17661639]
[1645844345069,0.002,39602.0,39599.0,0.17661639]
[1645844345371,0.21450555,39602.0,39599.0,0.17661639]
[1645844345668,0.21213103,39601.0,39599.0,0.17661639]
[1645844345868,0.05,39601.0,39599.0,0.17661639]
[1645844346369,0.31213103,39602.0,39599.0,0.17661639]
[1645844346570,0.31245856,39602.0,39599.0,0.17661639]
[1645844346974,0.10032753,39602.0,39599.0,0.17661639]
[1645844347571,0.1,39602.0,39599.0,0.17661639]
[1645844347771,0.10032753,39602.0,39599.0,0.17661639]
[1645844348633,0.1,39602.0,39599.0,0.17661639]
[1645844348833,0.1,39602.0,39599.0,0.17616249]
[1645844349038,0.05032753,39602.0,39599.0,0.17616249]
[1645844349233,0.00032753,39602.0,39599.0,0.17616249]
[1645844349834,0.08759042,39605.0,39599.0,0.17616249]
[1645844350035,0.21213103,39606.0,39599.0,0.17616249]
[1645844350338,0.00033435,39602.0,39599.0,0.20137249]
[1645844351034,0.002,39607.0,39599.0,0.20137249]
[1645844351235,0.21213103,39608.0,39599.0,0.20137249]
[1645844351435,0.00033435,39602.0,39599.0,0.20137249]
[1645844352269,0.003,39608.0,39599.0,0.20137249]
[1645844352564,0.00033435,39602.0,39599.0,0.20137249]
[1645844353565,0.8398692,39609.0,39599.0,0.20137249]
[1645844353765,0.00033336,39602.0,39599.0,0.20137249]
[1645844353965,0.00233336,39602.0,39599.0,0.17616249]
[1645844354766,0.002,39602.0,39599.0,0.17616249]
[1645844354970,0.00233336,39602.0,39599.0,0.17616249]
[1645844355165,0.00033336,39602.0,39599.0,0.17616249]
[1645844355817,0.70769095,39609.0,39599.0,0.17616249]
[1645844355818,0.53688038,39609.0,39599.0,0.17616249]
[1645844356018,0.003,39607.0,39599.0,0.17616249]
[1645844356219,0.00033336,39602.0,39599.0,0.17616249]
[1645844357017,0.003,39607.0,39599.0,0.17616249]
[1645844357217,0.53688038,39609.0,39599.0,0.17616249]
[1645844357417,0.0003335,39602.0,39599.0,0.17616249]
[1645844358018,0.0023335,39602.0,39599.0,0.17616249]
[1645844358218,0.002,39602.0,39599.0,0.17616249]
[1645844358618,0.0023335,39602.0,39599.0,0.17616249]
[1645844359267,0.0003335,39602.0,39599.0,0.17616249]
[1645844359468,0.52715438,39609.0,39599.0,0.17616249]
[1645844359669,0.21213103,39608.0,39599.0,0.17616249]
[1645844359869,0.0013335,39602.0,39599.0,0.17616249]
[1645844360676,0.001,39602.0,39599.0,0.17616249]
[1645844360871,0.00133348,39602.0,39599.0,0.17616249]
[1645844361273,0.00033348,39602.0,39599.0,0.17616249]
[1645844361873,0.8898692,39609.0,39599.0,0.17616249]
[1645844362076,0.00033348,39602.0,39599.0,0.17616249]
[1645844363121,0.002,39607.0,39599.0,0.17616249]
[1645844363320,0.00033348,39602.0,39599.0,0.17616249]
[1645844364221,0.003,39607.0,39599.0,0.17616249]
[1645844364621,0.00033349,39602.0,39599.0,0.17616249]
[1645844365429,0.31502335,39609.0,39599.0,0.17616249]
[1645844365623,0.52715438,39609.0,39599.0,0.17616249]
[1645844365823,0.00033349,39602.0,39599.0,0.17616249]
[1645844367975,0.002,39607.0,39599.0,0.17616249]
[1645844368171,0.00033349,39602.0,39599.0,0.17616249]
[1645844369170,0.21413103,39607.0,39599.0,0.17616249]
[1645844369373,0.00033349,39602.0,39599.0,0.17616249]
[1645844369972,0.00233349,39602.0,39599.0,0.17616249]
[1645844370375,0.002,39602.0,39599.0,0.17616249]
[1645844370626,0.00233349,39602.0,39599.0,0.17616249]
[1645844371321,0.00033349,39602.0,39599.0,0.17616249]
[1645844371526,0.21213103,39607.0,39599.0,0.17616249]
[1645844371724,0.26213103,39607.0,39599.0,0.17616249]
[1645844371923,0.00233349,39602.0,39599.0,0.17616249]
[1645844372622,0.30091115,39607.0,39599.0,0.17616249]
[1645844373023,0.00033349,39602.0,39599.0,0.17616249]
[1645844374123,0.002,39602.0,39599.0,0.17616249]
[1645844375368,0.23574692,39601.0,39599.0,0.17616249]
[1645844375968,0.23674692,39601.0,39599.0,0.17616249]
[1645844376768,0.001,39601.0,39599.0,0.17616249]
[1645844377169,0.21246366,39604.0,39599.0,0.17616249]
[1645844377170,0.26246366,39604.0,39599.0,0.17616249]
[1645844377669,0.26213103,39604.0,39599.0,0.17616249]
[1645844377871,0.26246368,39604.0,39599.0,0.17616249]
[1645844378119,0.21213103,39603.0,39599.0,0.17616249]
[1645844378323,0.26446368,39604.0,39599.0,0.17616249]
[1645844378721,0.26413103,39604.0,39599.0,0.17616249]
[1645844378925,0.21213103,39603.0,39599.0,0.17616249]
[1645844379323,0.2624638,39604.0,39599.0,0.17616249]
[1645844379922,0.21213103,39603.0,39599.0,0.17616249]
[1645844380124,0.2624638,39604.0,39599.0,0.17616249]
[1645844381125,0.26213103,39604.0,39599.0,0.17616249]
[1645844381324,0.21213103,39603.0,39599.0,0.17616249]
[1645844381525,0.39571792,39603.0,39599.0,0.17616249]
[1645844381969,0.39771792,39603.0,39599.0,0.17616249]
[1645844382371,0.21213103,39602.0,39599.0,0.17616249]
[1645844382773,0.56852849,39603.0,39599.0,0.17616249]
[1645844382972,0.39771792,39603.0,39599.0,0.17616249]
[1645844383174,0.39571792,39603.0,39599.0,0.17616249]
[1645844383372,0.21213103,39602.0,39599.0,0.17616249]
[1645844384978,0.56652849,39603.0,39596.0,0.1225]
[1645844385177,0.21213103,39602.0,39595.0,0.0003698]
[1645844385814,0.21213103,39602.0,39595.0,0.21379606]
[1645844386014,0.21213103,39602.0,39595.0,0.21342626]
[1645844386220,0.56652849,39603.0,39596.0,0.21342626]
[1645844386415,0.35439746,39603.0,39596.0,0.21342626]
[1645844388016,0.35539746,39603.0,39595.0,0.0003698]
[1645844388218,0.5672412,39603.0,39596.0,0.2134381]
[1645844388418,0.5672412,39603.0,39595.0,0.2134381]
[1645844388722,0.92995602,39603.0,39595.0,0.2138079]
[1645844388916,0.21184374,39602.0,39595.0,0.2138079]
[1645844389117,0.21184374,39602.0,39595.0,0.0003698]
[1645844389585,0.92895602,39603.0,39595.0,0.2134381]
[1645844389786,0.92895602,39603.0,39595.0,0.2138079]
[1645844389985,0.001,39602.0,39595.0,0.2138079]
[1645844390387,0.001,39602.0,39596.0,0.2134381]
[1645844390587,0.001,39602.0,39595.0,0.2138079]
[1645844390789,0.21284374,39602.0,39595.0,0.2134381]
[1645844390987,0.21284374,39602.0,39595.0,0.2138079]
[1645844391393,1.1567089,39603.0,39595.0,0.2138079]
[1645844391587,0.21184374,39602.0,39595.0,0.2138079]
[1645844391787,1.1567089,39603.0,39595.0,0.2138079]
[1645844391988,0.79699408,39603.0,39596.0,0.2134381]
[1645844392187,0.35739746,39603.0,39596.0,0.2134381]
[1645844392389,0.17381057,39603.0,39596.0,0.2134381]
[1645844392586,0.38565431,39603.0,39596.0,0.2134381]
[1645844393223,0.61340394,39603.0,39595.0,0.2134381]
[1645844393423,0.21184374,39602.0,39595.0,0.2138079]
[1645844394027,0.003,39602.0,39596.0,0.2134381]
[1645844395225,0.91831434,39603.0,39596.0,0.2134381]
[1645844396226,0.55559952,39603.0,39596.0,0.21202162]
[1645844397371,0.91831434,39603.0,39596.0,0.21202162]
[1645844397574,0.93422536,39603.0,39595.0,0.0003698]
[1645844397971,0.93722536,39603.0,39592.0,0.26679762]
[1645844398172,0.93722536,39603.0,39595.0,0.0003698]
[1645844399174,0.93722536,39603.0,39592.0,0.26679762]
[1645844399372,0.93422536,39603.0,39595.0,0.0003698]
[1645844400374,0.93422536,39603.0,39592.0,0.26679762]
[1645844400620,0.93422536,39603.0,39595.0,0.0003698]
[1645844400918,0.76341479,39603.0,39595.0,0.0003698]
[1645844401123,0.93423068,39603.0,39595.0,0.0003698]
[1645844401322,0.70647592,39603.0,39595.0,0.0003698]
[1645844401521,0.9342301,39603.0,39593.0,0.26679762]
[1645844401726,0.9342301,39603.0,39595.0,0.0003698]
[1645844402121,0.04157516,39599.0,39595.0,0.0003698]
[1645844402322,0.05,39602.0,39595.0,0.0003698]
[1645844402524,0.36271482,39601.0,39595.0,0.0003698]
[1645844402724,0.36271482,39601.0,39591.0,0.0001]
[1645844402725,0.42224482,39601.0,39591.0,0.0001]
[1645844403025,0.6870495,39601.0,39595.0,0.00036979]
[1645844403224,0.23128781,39596.0,39595.0,0.00036979]
[1645844403425,0.28128781,39596.0,39595.0,0.00036979]
[1645844403625,0.32286297,39596.0,39595.0,0.00036979]
[1645844403825,0.27286297,39596.0,39591.0,0.0001]
[1645844404125,0.23128781,39596.0,39594.0,0.0003698]
[1645844404776,0.28188781,39596.0,39594.0,0.0003698]
[1645844405179,0.04157516,39595.0,39591.0,0.0001]
[1645844405381,0.28188781,39596.0,39593.0,0.0003698]
[1645844406180,0.33388781,39596.0,39593.0,0.0003698]
[1645844406381,0.33388781,39596.0,39591.0,0.21355632]
[1645844406584,0.04157516,39594.0,39593.0,0.0003698]
[1645844407580,0.04157516,39594.0,39591.0,0.21355632]
[1645844407782,0.04157516,39594.0,39592.0,0.00036981]
[1645844408025,0.41331482,39593.0,39592.0,0.00036981]
[1645844408224,0.41331482,39593.0,39588.0,0.21345632]
[1645844408225,1.05,39592.0,39588.0,0.21102613]
[1645844408425,0.36271482,39591.0,39586.0,0.00147947]
[1645844408624,0.17081589,39591.0,39586.0,0.00147947]
[1645844408824,0.17081589,39591.0,39586.0,0.26679762]
[1645844409025,0.05,39593.0,39587.0,0.26679762]
[1645844409225,0.001,39594.0,39588.0,0.63292419]
[1645844409528,0.33128781,39596.0,39588.0,0.99905076]
[1645844409826,0.04157516,39592.0,39589.0,0.26679762]
[1645844410129,0.02895364,39601.0,39592.0,0.05362394]
[1645844410326,0.002,39601.0,39593.0,0.26678624]
[1645844411526,0.00038864,39599.0,39593.0,0.26678624]
[1645844412177,0.00338864,39599.0,39594.0,0.26678624]
[1645844412375,0.003,39599.0,39594.0,0.26678624]
[1645844412573,0.00338864,39599.0,39594.0,0.26678624]
[1645844413272,0.00338864,39599.0,39593.0,0.26678624]
[1645844413472,19.05,39604.0,39593.0,0.26678624]
[1645844413673,19.05,39604.0,39594.0,0.26678624]
[1645844413873,0.00038864,39599.0,39594.0,0.26678624]
[1645844414676,19.053,39604.0,39594.0,0.26678624]
[1645844414677,19.053,39604.0,39596.0,0.73225314]
[1645844414876,19.003,39604.0,39596.0,0.73225314]
[1645844415075,0.00038864,39599.0,39596.0,0.73225314]
[1645844416034,19.0,39604.0,39596.0,0.73225314]
[1645844416035,19.0,39604.0,39596.0,0.99903938]
[1645844416229,0.00011927,39599.0,39596.0,0.99903938]
[1645844416830,0.00011927,39599.0,39598.0,0.26678624]
[1645844417030,0.00011927,39599.0,39598.0,0.37643]
[1645844417235,19.003,39604.0,39599.0,0.08835]
[1645844417430,19.0,39604.0,39603.0,0.37643]
[1645844417829,19.0,39604.0,39601.0,0.26674395]
[1645844418030,19.0,39604.0,39602.0,0.64317395]
[1645844418230,19.001,39604.0,39603.0,0.02521]
[1645844418433,19.001,39604.0,39603.0,0.37643]
[1645844418832,19.001,39604.0,39603.0,0.02521]
[1645844419030,19.001,39604.0,39603.0,0.40164]
[1645844419471,19.0,39604.0,39603.0,0.40164]
[1645844419673,19.0,39604.0,39603.0,0.61498486]
[1645844419876,19.0,39604.0,39603.0,1.347238]
[1645844420071,19.0,39604.0,39603.0,0.945598]
[1645844420275,19.0,39604.0,39603.0,1.322028]
[1645844420473,19.0,39604.0,39603.0,0.945598]
[1645844421072,19.0,39604.0,39603.0,0.73225314]
[1645844422075,19.002,39604.0,39603.0,0.73225314]
[1645844423329,19.0,39604.0,39603.0,0.73225314]
[1645844424227,19.001,39604.0,39603.0,0.73225314]
[1645844425430,19.0,39604.0,39603.0,0.73225314]
[1645844426128,19.0,39604.0,39603.0,0.75846314]
[1645844426328,19.0,39604.0,39603.0,1.13489314]
[1645844426776,19.0,39604.0,39603.0,1.23489314]
[1645844427174,19.0,39604.0,39603.0,1.13489314]
[1645844427373,19.0,39604.0,39603.0,1.23389314]
[1645844427975,19.0,39604.0,39603.0,1.54905029]
[1645844428175,19.0,39604.0,39603.0,1.18792372]
[1645844428377,19.0,39604.0,39603.0,1.37844314]
[1645844428575,18.621267,39604.0,39603.0,1.37844314]
[1645844428775,17.51056504,39604.0,39603.0,2.74638669]
[1645844428977,16.37515173,39604.0,39603.0,2.89263219]
[1645844429280,15.54161258,39604.0,39603.0,3.70101017]
[1645844429477,15.16294258,39604.0,39603.0,3.93520957]
[1645844430081,14.07283488,39604.0,39603.0,3.93020957]
[1645844430277,14.07283488,39604.0,39603.0,3.24072052]
[1645844430532,14.07283488,39604.0,39603.0,3.74072052]
[1645844430733,13.69413988,39604.0,39603.0,3.69508052]
[1645844431132,13.69413988,39604.0,39603.0,4.06800979]
[1645844431333,13.69413988,39604.0,39603.0,4.06300979]
[1645844432034,13.69413988,39604.0,39603.0,3.50065314]
[1645844432235,13.69413988,39604.0,39603.0,3.8202123]
[1645844432836,13.69413988,39604.0,39603.0,3.40170314]
[1645844433035,13.69413988,39604.0,39603.0,2.89832348]
[1645844433238,13.69413988,39604.0,39603.0,2.03700314]
[1645844434272,13.69413988,39604.0,39603.0,2.08700314]
[1645844434475,13.69413988,39604.0,39603.0,2.03700314]
[1645844434676,13.69413988,39604.0,39603.0,1.86119314]
[1645844435473,13.69413988,39604.0,39603.0,1.48476314]
[1645844435875,13.69413988,39604.0,39603.0,1.86119314]
[1645844436275,13.69413988,39604.0,39603.0,1.86419314]
[1645844437474,13.69413988,39604.0,39603.0,1.86119314]
[1645844439327,13.68913988,39604.0,39603.0,1.86119314]
[1645844439927,13.11989113,39604.0,39603.0,1.86119314]
[1645844440131,13.11989113,39604.0,39603.0,1.86319314]
[1645844441328,13.11989113,39604.0,39603.0,1.86119314]
[1645844444173,13.11989113,39604.0,39603.0,1.86319314]
[1645844445524,13.11989113,39604.0,39603.0,1.86119314]
[1645844446128,13.11989113,39604.0,39603.0,1.86319314]
[1645844447625,13.11989113,39604.0,39603.0,1.86119314]
[1645844448228,13.11989113,39604.0,39603.0,1.86319314]
[1645844449576,13.11989113,39604.0,39603.0,1.86119314]
[1645844449974,12.4083478,39604.0,39603.0,1.86119314]
[1645844450373,12.4083478,39604.0,39603.0,1.86419314]
[1645844451574,12.4083478,39604.0,39603.0,1.86119314]
[1645844452178,12.4083478,39604.0,39603.0,1.86319314]
[1645844453436,12.4083478,39604.0,39603.0,1.86119314]
[1645844457270,12.4083478,39604.0,39603.0,2.07437362]
[1645844457471,12.4083478,39604.0,39603.0,1.86119314]
[1645844457968,12.4083478,39604.0,39603.0,2.12750339]
[1645844458169,12.4083478,39604.0,39603.0,1.86119314]
[1645844458369,12.4083478,39604.0,39603.0,2.12950339]
[1645844458970,12.4083478,39604.0,39603.0,1.86319314]
[1645844459471,12.4083478,39604.0,39603.0,1.86119314]
[1645844459870,12.4083478,39604.0,39603.0,2.12750339]
[1645844460070,12.4083478,39604.0,39603.0,1.86119314]
[1645844461739,12.4083478,39604.0,39603.0,2.18076544]
[1645844462337,12.4083478,39604.0,39603.0,2.18276544]
[1645844463239,12.4083478,39604.0,39603.0,1.86319314]
[1645844463439,12.4083478,39604.0,39603.0,1.86119314]
[1645844463642,12.4083478,39604.0,39603.0,2.18076544]
[1645844464273,12.4083478,39604.0,39603.0,1.86319314]
[1645844464873,12.4083478,39604.0,39603.0,2.41601188]
[1645844465073,12.4083478,39604.0,39603.0,1.86319314]
[1645844465273,12.4083478,39604.0,39603.0,2.41601031]
[1645844465478,12.4083478,39604.0,39603.0,3.18371031]
[1645844465675,12.4083478,39604.0,39603.0,2.04117597]
[1645844465874,12.4083478,39604.0,39603.0,2.14107597]
[1645844466073,12.0295838,39604.0,39603.0,2.04117597]
[1645844466277,12.0295838,39604.0,39603.0,2.41743998]
[1645844466474,10.79710643,39604.0,39603.0,2.04417597]
[1645844466678,10.79710643,39604.0,39603.0,3.26447597]
[1645844466875,10.79710643,39604.0,39603.0,3.75066236]
[1645844467073,10.41840243,39604.0,39603.0,3.77587236]
[1645844467474,10.41840243,39604.0,39603.0,3.34677597]
[1645844467673,10.03969743,39604.0,39603.0,3.77321778]
[1645844468325,10.03969743,39604.0,39603.0,3.34677597]
[1645844468526,10.03969743,39604.0,39603.0,3.77321778]
[1645844468830,10.03469743,39604.0,39603.0,3.77321778]
[1645844469523,10.03469743,39604.0,39603.0,4.27321778]
[1645844469922,9.65597043,39604.0,39603.0,4.27321778]
[1645844470124,8.94461961,39604.0,39603.0,4.27321778]
[1645844470824,8.94461961,39604.0,39603.0,3.84677597]
[1645844471223,8.94461961,39604.0,39603.0,3.82156597]
[1645844471430,8.94461961,39604.0,39603.0,3.81147597]
[1645844472372,8.94461961,39604.0,39603.0,3.81447597]
[1645844473574,8.94461961,39604.0,39603.0,3.82156597]
[1645844473774,8.94461961,39604.0,39603.0,3.47156597]
[1645844473977,8.94461961,39604.0,39603.0,3.46147597]
[1645844474377,8.94461961,39604.0,39603.0,3.46447597]
[1645844475629,8.94461961,39604.0,39603.0,3.46147597]
[1645844476531,8.09096863,39604.0,39603.0,3.46147597]
[1645844477329,8.09096863,39604.0,39603.0,3.66147597]
[1645844478328,8.09096863,39604.0,39603.0,4.16447597]
[1645844478729,8.09096863,39604.0,39603.0,4.18968597]
[1645844478929,8.09096863,39604.0,39603.0,4.16447597]
[1645844479572,8.09096863,39604.0,39603.0,4.16147597]
[1645844480376,8.09096863,39604.0,39603.0,4.30702504]
[1645844482075,8.09096863,39604.0,39603.0,4.16147597]
[1645844482274,8.09096863,39604.0,39603.0,4.31102593]
[1645844483525,8.09096863,39604.0,39603.0,4.57105064]
[1645844483726,7.71227063,39604.0,39603.0,4.57105064]
[1645844483926,7.71227063,39604.0,39603.0,4.54584064]
[1645844484330,7.71227063,39604.0,39603.0,4.30702593]
[1645844484727,7.71227063,39604.0,39603.0,4.16147597]
[1645844485430,7.71227063,39604.0,39603.0,4.30695583]
[1645844485829,7.71227063,39604.0,39603.0,4.16147597]
[1645844486029,7.71227063,39604.0,39603.0,4.30695785]
[1645844486229,7.71227063,39604.0,39603.0,4.16147597]
[1645844486631,6.85863182,39604.0,39603.0,4.16147597]
[1645844486880,6.85863182,39604.0,39603.0,4.30696344]
[1645844487080,6.85863182,39604.0,39603.0,4.33217344]
[1645844487278,6.47994182,39604.0,39603.0,4.33217344]
[1645844487480,5.70335217,39604.0,39603.0,4.33217344]
[1645844487878,5.32468817,39604.0,39603.0,4.18668597]
[1645844488079,5.32468817,39604.0,39603.0,4.16147597]
[1645844488282,5.32468817,39604.0,39603.0,4.16647597]
[1645844489581,5.32468817,39604.0,39603.0,4.16147597]
[1645844491929,5.32378007,39604.0,39603.0,4.16147597]
[1645844493924,5.31878007,39604.0,39603.0,4.16147597]
[1645844494125,5.31878007,39604.0,39603.0,3.96147597]
[1645844494382,5.31878007,39604.0,39603.0,3.96547597]
[1645844495382,5.31878007,39604.0,39603.0,3.85539704]
[1645844495581,5.31878007,39604.0,39603.0,3.85139704]
[1645844495780,5.31878007,39604.0,39603.0,3.35139704]
[1645844496582,4.46513026,39604.0,39603.0,3.35139704]
[1645844498029,4.46513026,39604.0,39603.0,3.52697042]
[1645844498229,4.46513026,39604.0,39603.0,3.56583149]
[1645844498431,4.46513026,39604.0,39603.0,3.57083149]
[1645844498630,4.46513026,39604.0,39603.0,3.99714147]
[1645844499230,4.46513026,39604.0,39603.0,3.32535421]
[1645844499632,4.46513026,39604.0,39603.0,3.47035421]
[1645844499837,4.46513026,39604.0,39603.0,3.61581071]
[1645844500233,4.46513026,39604.0,39603.0,3.61535741]
[1645844500633,4.46513026,39604.0,39603.0,4.11535741]
[1645844501034,4.46513026,39604.0,39603.0,4.54166739]
[1645844501236,4.46513026,39604.0,39603.0,4.11535741]
[1645844501535,4.46513026,39604.0,39603.0,3.96990091]
[1645844502173,4.46513026,39604.0,39603.0,3.81990091]
[1645844504979,4.46513026,39604.0,39603.0,3.96541934]
[1645844506527,3.46928768,39604.0,39603.0,2.93055827]
[1645844507529,3.46928768,39604.0,39603.0,2.92655827]
[1645844507728,3.46928768,39604.0,39603.0,3.95321842]
[1645844507925,3.12231999,39604.0,39603.0,3.92655827]
[1645844510283,3.12231999,39604.0,39603.0,4.0064193]
[1645844510484,3.12231999,39604.0,39603.0,3.36490087]
[1645844510887,3.12231999,39604.0,39603.0,3.51043874]
[1645844511084,3.12231999,39604.0,39603.0,3.43057771]
[1645844511285,3.12231999,39604.0,39603.0,3.28503984]
[1645844511684,3.12231999,39604.0,39603.0,3.28103984]
[1645844512288,3.12231999,39604.0,39603.0,3.36090167]
[1645844512486,3.12231999,39604.0,39603.0,3.50946893]
[1645844513131,3.12231999,39604.0,39603.0,3.3790071]
[1645844513330,3.12231999,39604.0,39603.0,2.46373984]
[1645844513729,3.12231999,39604.0,39603.0,2.46073984]
[1645844513929,3.12231999,39604.0,39603.0,3.23043984]
[1645844514532,3.12231999,39604.0,39603.0,2.46373984]
[1645844514931,3.12231999,39604.0,39603.0,3.23343984]
[1645844515132,3.12231999,39604.0,39603.0,2.73343984]
[1645844515532,3.12231999,39604.0,39603.0,2.87904166]
[1645844515734,3.12231999,39604.0,39603.0,2.87604166]
[1645844516635,3.12231999,39604.0,39603.0,3.37604166]
[1645844517780,3.12231999,39604.0,39603.0,3.42664166]
[1645844518180,3.12231999,39604.0,39603.0,4.10128828]
[1645844519882,3.12231999,39604.0,39603.0,4.18163631]
[1645844520532,3.12231999,39604.0,39603.0,4.18463631]
[1645844520932,2.74365299,39604.0,39603.0,4.18463631]
[1645844521229,2.15058435,39604.0,39603.0,4.18463631]
[1645844521429,2.15058435,39604.0,39603.0,4.00998969]
[1645844521629,2.15058435,39604.0,39603.0,4.00698969]
[1645844523137,2.15058435,39604.0,39603.0,3.23728969]
[1645844523331,2.15058435,39604.0,39603.0,3.15694166]
[1645844524129,2.15058435,39604.0,39603.0,3.92664166]
[1645844524381,2.15058435,39604.0,39603.0,3.42664166]
[1645844525378,2.15058435,39604.0,39603.0,3.44598101]
[1645844525578,2.15058435,39604.0,39603.0,3.44598038]
[1645844526581,2.15058435,39604.0,39603.0,2.67628038]
[1645844526882,2.15058435,39604.0,39603.0,3.44598038]
[1645844528125,2.15058435,39604.0,39603.0,3.40864166]
[1645844528527,2.15058435,39604.0,39603.0,3.41064166]
[1645844529724,2.15058435,39604.0,39603.0,3.40864166]
[1645844530127,2.15058435,39604.0,39603.0,3.45602147]
[1645844530524,2.15058435,39604.0,39603.0,3.45802147]
[1645844531327,2.15058435,39604.0,39603.0,3.63320004]
[1645844531526,2.15006572,39604.0,39603.0,3.63320004]
[1645844531781,2.15006572,39604.0,39603.0,3.63120004]
[1645844532583,2.15006572,39604.0,39603.0,3.58382023]
[1645844533186,2.15006572,39604.0,39603.0,3.62115911]
[1645844533590,2.15006572,39604.0,39603.0,3.58382023]
[1645844534389,2.15006572,39604.0,39603.0,3.58582023]
[1645844535730,2.15006572,39604.0,39603.0,3.58382023]
[1645844536428,2.15006572,39604.0,39603.0,3.58582023]
[1645844536829,2.15006572,39604.0,39603.0,3.55427353]
[1645844537029,2.15006572,39604.0,39603.0,4.09161147]
[1645844537831,2.15006572,39604.0,39603.0,4.08961147]
[1645844538230,2.15006572,39604.0,39603.0,4.13961147]
[1645844538431,2.15006572,39604.0,39603.0,3.63961147]
[1645844539883,2.15006572,39604.0,39603.0,3.13961147]
[1645844540487,2.15006572,39604.0,39603.0,3.09209836]
[1645844540688,2.15006572,39604.0,39603.0,2.91691979]
[1645844541686,2.15006572,39604.0,39603.0,2.96391979]
[1645844542187,2.15006572,39604.0,39603.0,3.46391979]
[1645844542790,2.15006572,39604.0,39603.0,3.63909836]
[1645844543232,0.3961,39624.0,39604.0,1.36113657]
[1645844543435,0.3961,39624.0,39615.0,0.7697]
[1645844543632,0.1999,39625.0,39618.0,0.37643]
[1645844543832,0.2549,39626.0,39621.0,0.37643]
[1645844544039,0.1,39629.0,39621.0,0.37643]
[1645844544533,0.1,39629.0,39621.0,0.37743]
[1645844544732,0.00036562,39627.0,39621.0,0.37743]
[1645844545732,0.1,39629.0,39621.0,0.37743]
[1645844545933,0.00036562,39626.0,39621.0,0.37743]
[1645844546331,0.00036562,39626.0,39621.0,0.37643]
[1645844546532,0.00036562,39626.0,39621.0,0.37743]
[1645844546977,0.1,39629.0,39621.0,0.37743]
[1645844547180,0.00036563,39625.0,39621.0,0.37743]
[1645844547676,0.00036563,39625.0,39621.0,0.37643]
[1645844548078,0.1,39626.0,39621.0,0.37643]
[1645844548277,0.20917301,39627.0,39621.0,0.37643]
[1645844548477,0.1,39626.0,39621.0,0.37843]
[1645844549080,0.1,39626.0,39624.0,0.36112657]
[1645844549381,0.1,39626.0,39624.0,0.72725314]
[1645844549978,0.1,39626.0,39624.0,0.71725314]
[1645844552043,0.1,39626.0,39624.0,0.14824382]
[1645844554295,0.21954686,39616.0,39609.0,0.37643]
[1645844555095,0.21954686,39616.0,39610.0,0.01008]
[1645844555296,0.21954686,39616.0,39611.0,0.37643]
[1645844555495,0.21954686,39616.0,39613.0,0.37643]
[1645844555698,0.00036532,39614.0,39613.0,0.37643]
[1645844556096,0.00036532,39614.0,39613.0,0.38652]
[1645844556496,0.21954686,39616.0,39613.0,0.38652]
[1645844556698,0.21954686,39616.0,39614.0,0.01008]
[1645844556897,0.21954686,39616.0,39615.0,0.37643]
[1645844558742,0.21954686,39616.0,39612.0,0.37643]
[1645844558941,0.21954686,39616.0,39613.0,0.01008]